[Event "Polish University-ch Teams 2024"]
[Site "Lublin"]
[Date "2024.02.25"]
[Round "8.20"]
[White "Jarocka, Liwia"]
[Black "Fiedorek, Michal"]
[Result "0-1"]
[ECO "B62"]
[WhiteElo "2199"]
[BlackElo "2286"]
[Annotator "TA"]
[PlyCount "80"]
[EventDate "2024.02.22"]
[EventType "team-tourn"]
[EventCountry "POL"]
[SourceTitle "playchess.com"]
[Source "ChessBase"]
[SourceQuality "1"]
[TimeControl "900+5"]

{[%evp 15,80,8,17,1,22,0,39,31,49,37,77,66,65,0,9,8,87,88,91,83,89,74,134,47,26,-97,-79,-84,0,0,99,91,102,71,68,42,50,-102,-24,-114,-99,-188,-144,-161,-143,-139,-162,-256,-229,-247,-261,-291,-293,-408,-385,-716,-727,-804,-388,-546,-543,-553,-544,-700,-479,-688,-599]} 1. e4 {[%emt 0:00:02]} c5 {[%emt 0:00:01]} 2. Nf3 {[%emt 0:00:01]} d6 {[%emt 0:00:02]} 3. Nc3 {[%emt 0:00:15]} Nc6 {[%emt 0:00:03]} 4. d4 {[%emt 0:00:14]} cxd4 {[%emt 0:00:02]} 5. Nxd4 {[%emt 0:00:01]} Nf6 {[%emt 0:00:02]} 6. Bg5 {[%emt 0:00:02]} e6 {[%emt 0:00:04]} 7. Qd3 {[%emt 0:00:18]} Be7 {[%emt 0:00:59]} 8. O-O-O {[%emt 0:00:08]} O-O {[%emt 0:00:04]} 9. f4 {[%emt 0:00:11]} Qb6 {[%emt 0:00:49]} 10. Kb1 {[%emt 0:00:20]} Rd8 {[%emt 0:01:27]} (10... h6 $5 11. Bh4 Bd7 $14) 11. Be2 {[%emt 0:00:51] Weiß steht etwas besser.} Bd7 {[%emt 0:00:34]} 12. Nb3 {[%emt 0:01:35][%cal Bd4b3,Bb3d2,Bd2f3][%mdl 32]} a5 {[%emt 0:00:28]} 13. Nd2 $1 {[%emt 0:02:39]} d5 {[%emt 0:03:25] Pariert Nc4.} 14. exd5 {[%emt 0:01:03]} (14. e5 $1 $14 Ne8 15. Bxe7 Nxe7 16. g4) 14... exd5 {[%emt 0:00:41]} 15. Qb5 {[%emt 0:01:21] Pariert Nb4.} Qa7 {[%emt 0:01:26]} (15... Qe3 $11 {bleibt in der Remisbreite.} 16. Bxf6 (16. Qxb7 $2 Rab8 $19) 16... Nb4 (16... Bxf6 $2 17. Nxd5 Nd4 18. Nxe3 $18) 17. Nxd5 (17. Qxb7 $2 Bxf6 18. Nc4 dxc4 $19) (17. Nf1 $2 Qe6 $19) 17... Nxd5 18. Qxd5 Bxf6) 16. Bxf6 $1 $16 {[%emt 0:01:35]} (16. Nxd5 Nxd5 17. Qxd5 Nb4 $17) 16... Bxf6 {[%emt 0:00:05]} 17. Nxd5 {[%emt 0:00:56]} (17. Qxd5 Be6 18. Qe4 (18. Qf3 Nd4 $17) 18... Bxc3 19. bxc3 Bd5 $17) 17... Bd4 {[%emt 0:00:26][%cal Oc6b4] Droht ...Nb4! und aus.} 18. Nf3 {[%emt 0:01:05]} Bc5 {[%emt 0:04:14]} ({Vorzuziehen ist} 18... Ne5 19. Qb3 a4) 19. Qc4 {[%emt 0:01:16]} (19. Ng5 $1 $16 {Droht stark Qd3.} h6 20. Ne4) 19... b5 $14 {[%emt 0:00:23]} 20. Qd3 {[%emt 0:01:17]} (20. Qe4 $11 {hält das Gleichgewicht.} Re8 21. Ne5) 20... Nb4 $36 {[%emt 0:00:01][%mdl 2048] Weiss muss aufpassen.} 21. Qe4 {[%emt 0:00:24] [#]} Be6 {[%emt 0:01:22] Ein starkes Läuferpaar.} (21... f5 $1 $17 {[%cal Rf5e4]} 22. Ne7+ Kf8 23. Nxf5 Bc6) 22. Ng5 {[%emt 0:00:05]} Nxd5 {[%emt 0:00:10]} (22... Bxd5 $11 23. Qxh7+ Kf8) 23. Qxh7+ $16 {[%emt 0:00:02]} Kf8 {[%emt 0:00:00]} 24. Nxe6+ {[%emt 0:00:24]} (24. Bf3 {wäre vielleicht verwirrender.} Bd4 25. Rhe1 Ne3 26. Rd3) 24... fxe6 {[%emt 0:00:04]} 25. Qh8+ {[%emt 0:00:54]} Kf7 {[%emt 0:00:06]} 26. Qh5+ {[%emt 0:00:01] [#]} (26. Bh5+ $14 {war der einzige gute Zug.} Kf6 27. Qh7 Nxf4 28. Bf3 (28. Rdf1 Bf2 $19) 28... Rxd1+ 29. Rxd1) 26... Kg8 {[%emt 0:00:05]} (26... g6 $1 $17 {[%cal Rg6h5]} 27. Qh7+ Kf6) 27. Bg4 {[%emt 0:00:09]} (27. Bd3 $1 $11) 27... Qf7 $17 {[%emt 0:00:09]} (27... Nxf4 $2 28. Qe5 $18) 28. Qh4 {[%emt 0:00:08]} (28. Qe5 $17 Ra6 (28... Qxf4 $2 29. Bxe6+ Kh7 30. Qh5+ Qh6 31. Rxd5 $18) 29. Rd3) 28... Nf6 {[%emt 0:00:04]} (28... Qxf4 29. Rxd5 (29. Bxe6+ Kf8 $14) 29... exd5 30. Be6+ $18) 29. Bf3 {[%emt 0:00:02]} Rac8 {[%emt 0:00:04]} 30. Rxd8+ {[%emt 0:00:02]} Rxd8 {[%emt 0:00:00]} 31. g4 {[%emt 0:00:03]} (31. Qe1 {ist eine bessere Verteidigung.}) 31... Be7 {[%emt 0:00:11][%cal Of6e4] Und jetzt ...Ne4! wäre schön.} 32. g5 {[%emt 0:00:04]} Nd5 {[%emt 0:00:01]} 33. Be4 {[%emt 0:00:01]} g6 {[%emt 0:00:07]} (33... Qxf4 34. Qh7+ Kf8 35. Qh8+ Kf7 36. Qh5+ Kf8 (36... Kg8 37. Qh7+ Kf8 38. Qh8+ Kf7 39. Qh5+ Kf8 40. Qh8+ $11) 37. Qh8+ Kf7 38. Qh5+ Kf8 (38... Kg8 39. Qh7+ Kf8 40. Qh8+ $11) 39. Qh8+ $11) 34. Qh6 {[%emt 0:00:09]} Nxf4 {[%emt 0:00:03]} (34... Qxf4 35. Qxg6+ Kf8 36. Qh6+ Ke8 37. Qxe6 $16) 35. Rf1 $2 {[%emt 0:00:03]} (35. Qh4) 35... e5 $19 {[%emt 0:00:02]} 36. b3 {[%emt 0:00:03] Lässt Qc4 nicht zu} Qh7 {[%emt 0:00:04]} (36... Ba3 $142 {( -> ...Qd7)} 37. Bxg6 Qxg6 38. Qxg6+ Nxg6) 37. Bc6 {[%emt 0:00:13]} (37. Qxh7+ $142 Kxh7 38. h4) 37... Qxh6 {[%emt 0:00:09] Schwarz steht klar auf Gewinn.} 38. gxh6 {[%emt 0:00:01]} b4 {[%emt 0:00:03]} 39. Re1 {[%emt 0:00:01]} Bf6 {[%emt 0:00:04] ...Bh4 ist eine echte Drohung.} 40. Bb5 {[%emt 0:00:01]} (40. Be4 $142) 40... Kh7 {[%emt 0:00:06] Gewichteter Fehlerwert: Weiß=0.65/Schwarz=0.50.  Fehler:       	Weiß=9     	Schwarz=5     Ungenau:       	Weiß=3     	Schwarz=3     OK:         	Weiß=5     	Schwarz=8     Bester:       	Weiß=1     	Schwarz=3     Stark:        	Weiß=2     	---} 0-1

[Event "Polish University-ch Teams 2024"]
[Site "Lublin"]
[Date "2024.02.25"]
[Round "8.21"]
[White "Pultorak, Jan"]
[Black "Golecki, Jan"]
[Result "0-1"]
[ECO "A12"]
[WhiteElo "2303"]
[BlackElo "2185"]
[Annotator "RC"]
[PlyCount "130"]
[EventDate "2024.02.22"]
[EventType "team-tourn"]
[EventCountry "POL"]
[SourceTitle "playchess.com"]
[Source "ChessBase"]
[SourceQuality "1"]
[TimeControl "900+5"]

1. b3 {[%emt 0:00:42]} d5 {[%emt 0:00:42]} 2. Bb2 {[%emt 0:00:02]} Nf6 {[%emt 0:00:01]} 3. e3 {[%emt 0:00:03]} g6 {[%emt 0:00:06]} 4. Nf3 {[%emt 0:00:03]} Bg7 {[%emt 0:00:01]} 5. Be2 {[%emt 0:00:05]} O-O {[%emt 0:00:03]} 6. O-O {[%emt 0:00:02]} c6 {[%emt 0:00:44]} 7. c4 {[%emt 0:00:14]} Bf5 {[%emt 0:00:09]} 8. Nc3 {[%emt 0:00:21]} Nbd7 {[%emt 0:01:59]} 9. cxd5 {[%emt 0:00:13]} Nxd5 {[%emt 0:00:28]} 10. d4 {[%emt 0:14:10]} Nxc3 {[%emt 0:01:06]} 11. Bxc3 {[%emt 0:00:00]} Qc7 {[%emt 0:00:14]} 12. Qd2 {[%emt 0:00:00]} Rfd8 {[%emt 0:01:30]} 13. Qb2 {[%emt 0:00:00]} Nb6 {[%emt 0:00:26]} 14. Rac1 {[%emt 0:00:00]} Nd5 {[%emt 0:00:35]} 15. a4 {[%emt 0:00:00]} Nxc3 {[%emt 0:00:04]} 16. Qxc3 {[%emt 0:00:00]} a5 {[%emt 0:00:17]} 17. h3 {[%emt 0:00:00]} Qb6 {[%emt 0:01:38]} 18. Bc4 {[%emt 0:00:00]} Rac8 {[%emt 0:00:18]} 19. Ng5 {[%emt 0:00:00]} Rf8 {[%emt 0:00:01]} 20. e4 {[%emt 0:00:00]} Bd7 {[%emt 0:00:03]} 21. Nf3 {[%emt 0:00:00]} Qc7 {[%emt 0:00:16]} 22. Rfd1 {[%emt 0:00:00]} c5 {[%emt 0:00:45]} 23. Qe3 {[%emt 0:00:00]} cxd4 {[%emt 0:00:56]} 24. Nxd4 {[%emt 0:00:00]} Qb6 {[%emt 0:00:11]} 25. Nf5 {[%emt 0:00:00]} Qxe3 {[%emt 0:00:38]} 26. Nxe7+ {[%emt 0:00:00]} Kh8 {[%emt 0:00:01]} 27. fxe3 {[%emt 0:00:00]} Rcd8 {[%emt 0:00:08]} 28. Rf1 {[%emt 0:00:00]} Rde8 {[%emt 0:00:12]} 29. Nd5 {[%emt 0:00:00]} Rxe4 {[%emt 0:00:30]} 30. Nf6 {[%emt 0:00:00]} Bxf6 {[%emt 0:00:04]} 31. Rxf6 {[%emt 0:00:00]} Kg7 {[%emt 0:01:20]} 32. Rcf1 {[%emt 0:00:00]} Bf5 {[%emt 0:00:52]} 33. Rb6 {[%emt 0:00:00]} Re7 {[%emt 0:00:01]} 34. Bd5 {[%emt 0:00:00]} Rd8 {[%emt 0:00:25]} 35. e4 {[%emt 0:00:00]} Be6 {[%emt 0:00:27]} 36. Bxe6 {[%emt 0:00:06]} fxe6 {[%emt 0:00:04]} 37. Rb5 {[%emt 0:00:06]} Rd4 {[%emt 0:00:06]} 38. e5 {[%emt 0:00:08]} Rc7 {[%emt 0:00:10]} 39. Rxa5 {[%emt 0:00:30]} Rd2 {[%emt 0:00:02]} 40. Rb5 {[%emt 0:00:30]} Rcc2 {[%emt 0:00:06]} 41. Rxb7+ {[%emt 0:00:08]} Kh6 {[%emt 0:00:01]} 42. Re1 {[%emt 0:00:15]} Rxg2+ {[%emt 0:00:02]} 43. Kh1 {[%emt 0:00:03]} Rh2+ {[%emt 0:00:02]} 44. Kg1 {[%emt 0:00:01]} Rcg2+ {[%emt 0:00:02]} 45. Kf1 {[%emt 0:00:01]} Rb2 {[%emt 0:00:01]} 46. Kg1 {[%emt 0:00:03]} Rxh3 {[%emt 0:00:08]} 47. b4 {[%emt 0:00:18]} Rh4 {[%emt 0:00:33]} 48. Rb6 {[%emt 0:00:47]} Rg4+ {[%emt 0:00:03]} 49. Kf1 {[%emt 0:00:04]} Rf4+ {[%emt 0:00:01]} 50. Kg1 {[%emt 0:00:02]} Rfxb4 {[%emt 0:00:02]} 51. Rxe6 {[%emt 0:00:02]} Kg5 {[%emt 0:00:17]} 52. Rc6 {[%emt 0:00:05]} Rxa4 {[%emt 0:00:24]} 53. e6 {[%emt 0:00:02]} Rg4+ {[%emt 0:00:01]} 54. Kf1 {[%emt 0:00:01]} Rbb4 {[%emt 0:00:01]} 55. Rc5+ {[%emt 0:00:23]} Kf6 {[%emt 0:00:01]} 56. Rce5 {[%emt 0:00:02]} Rbf4+ {[%emt 0:00:03]} 57. Ke2 {[%emt 0:00:05]} Re4+ {[%emt 0:00:00]} 58. Kf3 {[%emt 0:00:12]} Ref4+ {[%emt 0:00:20]} 59. Ke2 {[%emt 0:00:01]} Ke7 {[%emt 0:00:01]} 60. Kd3 {[%emt 0:00:04]} Rd4+ {[%emt 0:00:03]} 61. Kc3 {[%emt 0:00:03]} Rc4+ {[%emt 0:00:01]} 62. Kb3 {[%emt 0:00:01]} Rc6 {[%emt 0:00:01]} 63. R5e3 {[%emt 0:00:12]} Rg5 {[%emt 0:00:03]} 64. Ra1 {[%emt 0:00:07]} Rb5+ {[%emt 0:00:03]} 65. Ka4 {[%emt 0:00:07]} Rb8 {[%emt 0:00:01]} 0-1

[Event "Polish University-ch Teams 2024"]
[Site "Lublin"]
[Date "2024.02.25"]
[Round "8.23"]
[White "Adamczewski, Jedrzej"]
[Black "Parol, Pola"]
[Result "1-0"]
[ECO "B96"]
[WhiteElo "1917"]
[BlackElo "2030"]
[Annotator "NA"]
[PlyCount "97"]
[EventDate "2024.02.22"]
[EventType "team-tourn"]
[EventCountry "POL"]
[SourceTitle "playchess.com"]
[Source "ChessBase"]
[SourceQuality "1"]
[TimeControl "900+5"]

1. e4 {[%emt 0:00:03]} c5 {[%emt 0:00:02]} 2. Nf3 {[%emt 0:00:02]} d6 {[%emt 0:00:01]} 3. d4 {[%emt 0:00:02]} cxd4 {[%emt 0:00:01]} 4. Nxd4 {[%emt 0:00:02]} Nf6 {[%emt 0:00:02]} 5. Nc3 {[%emt 0:00:02]} a6 {[%emt 0:00:01]} 6. Bg5 {[%emt 0:00:02]} e6 {[%emt 0:00:07]} 7. f4 {[%emt 0:00:02]} h6 {[%emt 0:00:02]} 8. Bh4 {[%emt 0:00:01]} Qb6 {[%emt 0:00:01]} 9. Qd2 {[%emt 0:00:02]} Qxb2 {[%emt 0:00:11]} 10. Rb1 {[%emt 0:00:01]} Qa3 {[%emt 0:00:01]} 11. f5 {[%emt 0:00:04]} Be7 {[%emt 0:01:27]} 12. fxe6 {[%emt 0:00:12]} fxe6 {[%emt 0:00:03]} 13. Bc4 {[%emt 0:00:02]} Nxe4 {[%emt 0:02:59]} 14. Nxe4 {[%emt 0:00:35]} Bxh4+ {[%emt 0:00:02]} 15. g3 {[%emt 0:01:35]} Bg5 {[%emt 0:00:07]} 16. Nxg5 {[%emt 0:00:30]} hxg5 {[%emt 0:00:02]} 17. Nb3 {[%emt 0:02:05]} Qa4 {[%emt 0:01:42]} 18. Bd3 {[%emt 0:00:41]} O-O {[%emt 0:03:31]} 19. Qxg5 {[%emt 0:00:22]} Qb4+ {[%emt 0:00:11]} 20. Nd2 {[%emt 0:01:37]} Qd4 {[%emt 0:00:30]} 21. Rf1 {[%emt 0:00:01]} Qe5+ {[%emt 0:00:48]} 22. Qxe5 {[%emt 0:00:03]} dxe5 {[%emt 0:00:27]} 23. Bh7+ {[%emt 0:00:57]} Kxh7 {[%emt 0:00:01]} 24. Rxf8 {[%emt 0:00:02]} Nc6 {[%emt 0:00:07]} 25. Rb6 {[%emt 0:01:20]} g5 {[%emt 0:02:15]} 26. Ne4 {[%emt 0:00:52]} Kg7 {[%emt 0:01:22]} 27. Re8 {[%emt 0:00:04]} Rb8 {[%emt 0:00:47]} 28. Nd6 {[%emt 0:00:37]} Na7 {[%emt 0:00:23]} 29. h4 {[%emt 0:00:34]} gxh4 {[%emt 0:00:01]} 30. gxh4 {[%emt 0:00:01]} Kf6 {[%emt 0:00:04]} 31. Kf2 {[%emt 0:00:08]} e4 {[%emt 0:00:07]} 32. Ke3 {[%emt 0:00:19]} Ke5 {[%emt 0:00:02]} 33. h5 {[%emt 0:00:05]} Kf6 {[%emt 0:00:11]} 34. Kxe4 {[%emt 0:00:16]} Kg7 {[%emt 0:00:08]} 35. Ke5 {[%emt 0:00:33]} Nc6+ {[%emt 0:00:01]} 36. Rxc6 {[%emt 0:00:19]} bxc6 {[%emt 0:00:03]} 37. Rxc8 {[%emt 0:00:01]} Rb2 {[%emt 0:00:07]} 38. Rxc6 {[%emt 0:00:04]} Rxa2 {[%emt 0:00:03]} 39. Kxe6 {[%emt 0:00:14]} Ra5 {[%emt 0:00:08]} 40. Nf5+ {[%emt 0:00:08]} Kh7 {[%emt 0:00:03]} 41. Rc7+ {[%emt 0:00:01]} Kg8 {[%emt 0:00:02]} 42. c4 {[%emt 0:00:28]} Ra1 {[%emt 0:00:02]} 43. c5 {[%emt 0:00:01]} a5 {[%emt 0:00:06]} 44. c6 {[%emt 0:00:12]} Re1+ {[%emt 0:00:03]} 45. Kd7 {[%emt 0:00:08]} Rd1+ {[%emt 0:00:04]} 46. Nd6 {[%emt 0:00:01]} Rd5 {[%emt 0:00:13]} 47. Ra7 {[%emt 0:00:03]} Rxh5 {[%emt 0:00:09]} 48. c7 {[%emt 0:00:17]} Rh7+ {[%emt 0:00:04]} 49. Kc6 {[%emt 0:00:03]} 1-0

[Event "Polish University-ch Teams 2024"]
[Site "Lublin"]
[Date "2024.02.25"]
[Round "8.24"]
[White "Kaczmarska, Joanna"]
[Black "Wojtas, Julia"]
[Result "1-0"]
[ECO "B30"]
[WhiteElo "1870"]
[BlackElo "1346"]
[Annotator "NA"]
[PlyCount "93"]
[EventDate "2024.02.22"]
[EventType "team-tourn"]
[EventCountry "POL"]
[SourceTitle "playchess.com"]
[Source "ChessBase"]
[SourceQuality "1"]
[TimeControl "900+5"]

1. Nf3 {[%emt 0:00:01]} d6 {[%emt 0:00:03]} 2. d3 {[%emt 0:00:10]} Nf6 {[%emt 0:00:12]} 3. g3 {[%emt 0:00:04]} c5 {[%emt 0:00:05]} 4. Bg2 {[%emt 0:00:01]} Nc6 {[%emt 0:00:04]} 5. O-O {[%emt 0:00:02]} e6 {[%emt 0:00:03]} 6. e4 {[%emt 0:00:07]} Be7 {[%emt 0:00:07]} 7. Nbd2 {[%emt 0:00:09]} O-O {[%emt 0:00:05]} 8. Ne1 {[%emt 0:00:29]} Qc7 {[%emt 0:00:08]} 9. f4 {[%emt 0:00:02]} d5 {[%emt 0:00:19]} 10. g4 {[%emt 0:00:38]} b5 {[%emt 0:01:27]} 11. g5 {[%emt 0:00:13]} Nd7 {[%emt 0:00:17]} 12. exd5 {[%emt 0:00:02]} exd5 {[%emt 0:00:09]} 13. Bxd5 {[%emt 0:00:03]} Nb6 {[%emt 0:00:09]} 14. Bg2 {[%emt 0:00:19]} Bb7 {[%emt 0:01:10]} 15. Ne4 {[%emt 0:00:32]} f6 {[%emt 0:04:12]} 16. gxf6 {[%emt 0:02:52]} Bxf6 {[%emt 0:00:20]} 17. Nf3 {[%emt 0:01:36]} Ne7 {[%emt 0:00:57]} 18. c3 {[%emt 0:01:33]} Rad8 {[%emt 0:00:22]} 19. Qb3+ {[%emt 0:00:14]} c4 {[%emt 0:00:53]} 20. Qxb5 {[%emt 0:02:19]} cxd3 {[%emt 0:00:47]} 21. Nxf6+ {[%emt 0:04:07]} Rxf6 {[%emt 0:00:11]} 22. Bd2 {[%emt 0:00:01]} Nf5 {[%emt 0:02:26]} 23. Qe5 {[%emt 0:00:37]} Qf7 {[%emt 0:01:04]} 24. Ng5 {[%emt 0:00:14]} Qd7 {[%emt 0:01:06]} 25. Ne4 {[%emt 0:00:22]} Bxe4 {[%emt 0:00:06]} 26. Qxe4 {[%emt 0:00:09]} Re8 {[%emt 0:00:03]} 27. Qf3 {[%emt 0:00:17]} Nh4 {[%emt 0:00:04]} 28. Qh3 {[%emt 0:00:01]} Qxh3 {[%emt 0:00:24]} 29. Bxh3 {[%emt 0:00:01]} Rg6+ {[%emt 0:00:01]} 30. Kh1 {[%emt 0:00:08]} Re2 {[%emt 0:00:03]} 31. Be1 {[%emt 0:00:08]} Ng2 {[%emt 0:00:13]} 32. Bg3 {[%emt 0:00:06]} Ne3 {[%emt 0:00:02]} 33. Rf2 {[%emt 0:00:04]} Rxf2 {[%emt 0:00:10]} 34. Bxf2 {[%emt 0:00:02]} Nbd5 {[%emt 0:00:02]} 35. Bf1 {[%emt 0:00:07]} d2 {[%emt 0:00:01]} 36. Be2 {[%emt 0:00:06]} Re6 {[%emt 0:00:11]} 37. Bd1 {[%emt 0:00:05]} Nxf4 {[%emt 0:00:04]} 38. Bb3 {[%emt 0:00:01]} d1=Q+ {[%emt 0:00:08]} 39. Bxd1 {[%emt 0:00:07]} Nxd1 {[%emt 0:00:04]} 40. Rxd1 {[%emt 0:00:01]} Re2 {[%emt 0:00:05]} 41. Bg3 {[%emt 0:00:04]} Ng2 {[%emt 0:00:04]} 42. Rb1 {[%emt 0:00:06]} Ne3 {[%emt 0:00:03]} 43. a4 {[%emt 0:00:06]} a6 {[%emt 0:00:02]} 44. b4 {[%emt 0:00:08]} Ra2 {[%emt 0:00:05]} 45. b5 {[%emt 0:00:04]} Rxa4 {[%emt 0:00:13]} 46. b6 {[%emt 0:00:01]} Nc4 {[%emt 0:00:05]} 47. b7 {[%emt 0:00:02]} 1-0

[Event "Polish University-ch Teams 2024"]
[Site "Lublin"]
[Date "2024.02.25"]
[Round "9.1"]
[White "Janik, Igor"]
[Black "Wikar, Martyna"]
[Result "1-0"]
[ECO "B31"]
[WhiteElo "2499"]
[BlackElo "2214"]
[Annotator "TA"]
[PlyCount "67"]
[EventDate "2024.02.22"]
[EventType "team-tourn"]
[EventCountry "POL"]
[SourceTitle "playchess.com"]
[Source "ChessBase"]
[SourceQuality "1"]
[TimeControl "900+5"]

{[%evp 11,67,19,26,27,35,35,35,14,29,8,12,3,10,13,49,52,58,65,74,59,174,162,203,206,254,262,242,201,244,93,59,64,505,504,514,518,627,320,386,295,332,325,333,329,316,320,448,447,607,548,555,556,558,548,5840,5832,5832,5737]} 1. e4 {[%emt 0:00:14]} c5 {[%emt 0:00:04]} 2. Nf3 {[%emt 0:00:03]} Nc6 {[%emt 0:00:03]} 3. Bb5 {[%emt 0:00:01]} g6 {[%emt 0:00:02]} 4. Bxc6 {[%emt 0:00:02]} dxc6 {[%emt 0:00:11]} 5. d3 {[%emt 0:00:03]} Bg7 {[%emt 0:00:03]} 6. h3 {[%emt 0:00:01]} e5 {[%emt 0:00:03]} 7. a3 {[%emt 0:00:02]} Qd6 {[%emt 0:00:13]} 8. Nbd2 {[%emt 0:00:04]} Be6 {[%emt 0:00:09]} 9. b4 {[%emt 0:00:01] White is slightly better.} Nf6 {[%emt 0:00:50]} 10. bxc5 {[%emt 0:00:44]} Qxc5 {[%emt 0:00:02]} 11. a4 {[%emt 0:00:01]} Qd6 {[%emt 0:01:15]} 12. Ba3 {[%emt 0:00:14]} c5 {[%emt 0:00:06] [#]} 13. d4 $1 {[%emt 0:00:13]} Nh5 {[%emt 0:01:06]} (13... exd4 14. e5) 14. Bxc5 {[%emt 0:00:59]} Qc7 {[%emt 0:00:35]} 15. O-O {[%emt 0:00:21]} b6 {[%emt 0:00:14]} (15... Nf4 $14) 16. Ba3 {[%emt 0:00:21] Strongly threatening Nxe5.} exd4 {[%emt 0:00:05] [#]} 17. e5 $1 {[%emt 0:00:01][%mdl 512] Black must now prevent Ne4.} Bxe5 {[%emt 0:01:24]} (17... Bf8 18. Bxf8) 18. Nxe5 {[%emt 0:00:08]} Qxe5 {[%emt 0:00:02]} 19. Re1 {[%emt 0:00:02]} Qc7 {[%emt 0:00:46]} 20. Ne4 $2 {[%emt 0:00:08]} (20. a5 $18 {and White stays clearly on top.}) 20... O-O-O $16 {[%emt 0:02:06]} 21. a5 $36 {[%emt 0:00:01][%mdl 2048] White is pushing.} Kb8 $2 {[%emt 0:02:28][%mdl 8192] A mistake that costs the game.} ({Better is} 21... b5 $1 $14) 22. axb6 $18 {[%emt 0:00:04]} axb6 {[%emt 0:00:01]} 23. Qb1 {[%emt 0:01:09]} Rd5 {[%emt 0:01:25] Prevents Bc5} 24. Bb4 {[%emt 0:00:40][%cal Oc2c4] aiming for c4!} Nf4 {[%emt 0:03:52]} 25. Qa2 {[%emt 0:00:26][%csl Ga1][%cal Ra2a8]} Nxh3+ {[%emt 0:00:00]} 26. gxh3 {[%emt 0:01:18][%csl Ga1][%cal Ra2a8]} Rg5+ {[%emt 0:00:00]} 27. Nxg5 {[%emt 0:00:03][%cal Be4g5,Bg5f7,Bf7d6][%mdl 32]} Bxa2 {[%emt 0:00:00]} 28. Rxa2 {[%emt 0:00:04]} Rd8 {[%emt 0:00:00]} 29. Rea1 {[%emt 0:00:18] White is clearly winning.} (29. Nxh7 Qf4 $16) 29... Qc6 {[%emt 0:00:17] Wards off Ra8+} 30. Nxf7 {[%emt 0:00:09]} ({Less strong is} 30. Nxh7 Rd5 $16) 30... Rd5 {[%emt 0:00:13] [#]} 31. Bd6+ $1 {[%emt 0:01:17][%mdl 512]} Rxd6 {[%emt 0:00:00]} 32. Ra8+ {[%emt 0:00:07]} Kc7 {[%emt 0:00:00][%cal Oc6d5]} 33. R1a7+ {[%emt 0:00:03]} Qb7 {[%emt 0:00:06]} 34. Nxd6 {[%emt 0:00:03] Weighted Error Value: White=0.35/Black=0.68.  Loses game:     	---       	Black=1      Mistake:       	White=1     	Black=1      Inaccurate:     	White=1     	Black=4      OK:         	White=5     	Black=4      Best:        	White=5     	Black=3      Brilliant:      	White=1     	---} 1-0